[Event "15. ročník Dobrovický rapid Tereos TTD a.s."]
[Site "Dobrovice, Czech Republic"]
[Date "2020.02.29"]
[Round "2.9"]
[White "Kaderabek Jiri"]
[Black "Sala Dalibor"]
[Result "1-0"]
[TimeControl "15m + 3s / tah"]
[WhiteElo "2105"]
[BlackElo "1930"]

1. Nf3 {[%clk 00:15:03]} {[%emt 00:00:02]} Nf6 {[%clk 00:15:03]} {[%emt
00:00:04]} 2. g3 {[%clk 00:15:03]} {[%emt 00:00:03]} g6 {[%clk 00:15:04]}
{[%emt 00:00:02]} 3. Bg2 {[%clk 00:15:05]} {[%emt 00:00:01]} Bg7 {[%clk
00:15:06]} 4. O-O {[%clk 00:15:06]} {[%emt 00:00:03]} O-O {[%clk 00:15:06]}
{[%emt 00:00:03]} 5. d4 {[%clk 00:15:08]} {[%emt 00:00:02]} d6 {[%clk
00:15:05]} {[%emt 00:00:03]} 6. c4 {[%clk 00:14:59]} {[%emt 00:00:12]} Nbd7
{[%clk 00:15:06]} {[%emt 00:00:02]} 7. Nc3 {[%clk 00:14:56]} {[%emt 00:00:06]}
e5 {[%clk 00:15:07]} {[%emt 00:00:02]} 8. b3 {[%clk 00:14:55]} {[%emt
00:00:05]} Re8 {[%clk 00:14:29]} {[%emt 00:00:41]} 9. Bb2 {[%clk 00:14:44]}
{[%emt 00:00:13]} c6 {[%clk 00:14:06]} {[%emt 00:00:27]} 10. dxe5 {[%clk
00:14:34]} {[%emt 00:00:14]} dxe5 {[%clk 00:14:06]} {[%emt 00:00:02]} 11. Ng5
{[%clk 00:13:51]} {[%emt 00:00:46]} Qe7 {[%clk 00:12:34]} {[%emt 00:01:34]} 12.
a4 {[%clk 00:13:25]} {[%emt 00:00:29]} a5 {[%clk 00:11:51]} {[%emt 00:00:46]}
13. Ba3 {[%clk 00:13:19]} {[%emt 00:00:10]} Nc5 {[%clk 00:11:53]} {[%emt
00:00:02]} 14. Nce4 {[%clk 00:12:56]} {[%emt 00:00:26]} Nfxe4 {[%clk 00:11:51]}
{[%emt 00:00:05]} 15. Nxe4 {[%clk 00:12:56]} {[%emt 00:00:02]} b6 {[%clk
00:11:46]} {[%emt 00:00:09]} 16. Nxc5 {[%clk 00:12:31]} {[%emt 00:00:28]} bxc5
{[%clk 00:11:45]} {[%emt 00:00:03]} 17. Bxc6 {[%clk 00:12:29]} {[%emt
00:00:05]} Bh3 {[%emt 00:00:08]} 1-0

[Event "15. ročník Dobrovický rapid Tereos TTD a.s."]
[Site "Dobrovice, Czech Republic"]
[Date "2020.02.29"]
[Round "2.10"]
[White "Buchar Petr"]
[Black "Zahorbensky Jaroslav"]
[Result "0-1"]
[TimeControl "15m + 3s / tah"]
[WhiteElo "1904"]
[BlackElo "2105"]

1. f4 {[%clk 00:15:03]} {[%emt 00:00:01]} g6 {[%clk 00:14:57]} {[%emt
00:00:10]} 2. Nf3 {[%clk 00:15:04]} {[%emt 00:00:02]} d6 {[%clk 00:14:58]}
{[%emt 00:00:02]} 3. g3 {[%clk 00:15:06]} {[%emt 00:00:02]} Bg4 {[%clk
00:14:57]} {[%emt 00:00:03]} 4. Bg2 {[%clk 00:15:08]} {[%emt 00:00:01]} c6
{[%clk 00:14:57]} {[%emt 00:00:03]} 5. e4 {[%clk 00:15:00]} {[%emt 00:00:11]}
Bg7 {[%clk 00:14:44]} {[%emt 00:00:16]} 6. c3 {[%clk 00:14:48]} {[%emt
00:00:15]} e5 {[%clk 00:14:39]} {[%emt 00:00:07]} 7. d3 {[%clk 00:13:47]}
{[%emt 00:01:04]} Qb6 {[%clk 00:14:32]} {[%emt 00:00:10]} 8. Qe2 {[%clk
00:13:24]} {[%emt 00:00:26]} Nd7 {[%clk 00:14:20]} {[%emt 00:00:14]} 9. Be3
{[%clk 00:13:23]} {[%emt 00:00:05]} Qa6 {[%clk 00:14:22]} {[%emt 00:00:02]} 10.
O-O {[%clk 00:12:42]} {[%emt 00:00:44]} Ngf6 {[%clk 00:14:17]} {[%emt
00:00:07]} 11. Qc2 {[%clk 00:11:51]} {[%emt 00:00:54]} O-O {[%clk 00:13:38]}
{[%emt 00:00:42]} 12. h3 {[%clk 00:11:53]} Bxf3 {[%clk 00:13:33]} {[%emt
00:00:09]} 13. Bxf3 {[%clk 00:11:49]} {[%emt 00:00:08]} d5 {[%clk 00:12:21]}
{[%emt 00:01:15]} 14. f5 {[%clk 00:11:26]} {[%emt 00:00:26]} Rfd8 {[%clk
00:11:21]} {[%emt 00:01:02]} 15. g4 {[%clk 00:11:27]} {[%emt 00:00:04]} Nb6
{[%clk 00:10:01]} {[%emt 00:01:22]} 16. Bg5 {[%clk 00:10:05]} {[%emt 00:01:25]}
dxe4 {[%clk 00:09:49]} {[%emt 00:00:16]} 17. Bxe4 {[%clk 00:08:58]} {[%emt
00:01:10]} Rd6 {[%clk 00:09:47]} {[%emt 00:00:05]} 18. Bxf6 {[%clk 00:08:33]}
{[%emt 00:00:27]} Bxf6 {[%clk 00:09:46]} {[%emt 00:00:04]} 19. fxg6 {[%clk
00:08:18]} {[%emt 00:00:19]} hxg6 {[%clk 00:09:38]} {[%emt 00:00:11]} 20. Nd2
{[%clk 00:08:07]} {[%emt 00:00:13]} Nd5 {[%clk 00:09:39]} {[%emt 00:00:02]} 21.
Bxd5 {[%clk 00:08:01]} {[%emt 00:00:09]} cxd5 {[%clk 00:09:37]} {[%emt
00:00:05]} 22. Nb3 {[%clk 00:07:26]} {[%emt 00:00:37]} Qb6+ {[%clk 00:08:07]}
{[%emt 00:01:33]} 23. Qf2 {[%clk 00:07:17]} {[%emt 00:00:12]} Bh4 {[%clk
00:07:18]} {[%emt 00:00:53]} 24. Qxb6 {[%clk 00:07:07]} {[%emt 00:00:12]} Rxb6
{[%clk 00:07:02]} {[%emt 00:00:19]} 25. Rab1 {[%clk 00:06:48]} {[%emt
00:00:22]} Re8 {[%clk 00:06:51]} {[%emt 00:00:14]} 26. Nd2 {[%clk 00:06:02]}
{[%emt 00:00:50]} Bg5 {[%clk 00:06:24]} {[%emt 00:00:30]} 27. Nf3 {[%clk
00:05:49]} {[%emt 00:00:15]} Be3+ {[%clk 00:06:25]} {[%emt 00:00:03]} 28. Kg2
{[%clk 00:05:51]} e4 {[%clk 00:06:19]} {[%emt 00:00:09]} 29. Ne1 {[%clk
00:05:02]} {[%emt 00:00:52]} Bd2 {[%clk 00:06:10]} {[%emt 00:00:11]} 30. Rf2
{[%clk 00:04:33]} {[%emt 00:00:32]} Bxc3 {[%clk 00:06:08]} {[%emt 00:00:05]} 31.
dxe4 {[%clk 00:04:09]} {[%emt 00:00:27]} dxe4 {[%clk 00:06:02]} {[%emt
00:00:09]} 32. Rc2 {[%clk 00:04:08]} {[%emt 00:00:04]} Bg7 {[%clk 00:05:33]}
{[%emt 00:00:32]} 33. b3 {[%clk 00:03:50]} {[%emt 00:00:21]} Re7 {[%clk
00:05:34]} {[%emt 00:00:02]} 34. Rd1 {[%clk 00:03:33]} {[%emt 00:00:19]} Kh7
{[%clk 00:05:29]} {[%emt 00:00:08]} 35. Rc4 {[%clk 00:03:13]} {[%emt 00:00:23]}
f5 {[%clk 00:05:28]} {[%emt 00:00:04]} 36. Nc2 {[%clk 00:02:59]} {[%emt
00:00:18]} f4 {[%clk 00:05:27]} {[%emt 00:00:04]} 37. Nb4 {[%clk 00:02:53]}
{[%emt 00:00:09]} f3+ {[%clk 00:05:18]} {[%emt 00:00:12]} 38. Kf1 {[%clk
00:02:42]} {[%emt 00:00:14]} e3 {[%clk 00:04:56]} {[%emt 00:00:25]} 39. Re1
{[%clk 00:02:42]} {[%emt 00:00:03]} Rxb4 {[%clk 00:04:21]} {[%emt 00:00:38]} 40.
Rxb4 {[%clk 00:02:32]} {[%emt 00:00:14]} Bc3 {[%clk 00:04:20]} {[%emt
00:00:04]} 41. Rf4 {[%clk 00:02:11]} {[%emt 00:00:24]} Bxe1 {[%clk 00:04:19]}
{[%emt 00:00:04]} 42. Kxe1 {[%clk 00:02:13]} f2+ {[%clk 00:04:01]} {[%emt
00:00:21]} 43. Ke2 {[%clk 00:02:13]} {[%emt 00:00:03]} Kg7 {[%clk 00:04:02]}
{[%emt 00:00:01]} 44. Rc4 {[%clk 00:01:51]} {[%emt 00:00:25]} Kf6 {[%clk
00:03:28]} {[%emt 00:00:37]} 45. h4 {[%clk 00:01:23]} {[%emt 00:00:31]} Ke5
{[%clk 00:02:36]} {[%emt 00:00:55]} 46. Rc1 {[%clk 00:00:51]} {[%emt 00:00:35]}
Kf4 {[%clk 00:02:37]} {[%emt 00:00:02]} 47. Rc4+ {[%clk 00:00:45]} {[%emt
00:00:09]} Kg3 {[%clk 00:02:39]} {[%emt 00:00:01]} 48. h5 {[%clk 00:00:47]}
gxh5 {[%clk 00:02:39]} {[%emt 00:00:04]} 49. gxh5 {[%clk 00:00:47]} {[%emt
00:00:03]} Rf7 {[%clk 00:02:37]} {[%emt 00:00:04]} 50. Rc1 {[%clk 00:00:36]}
{[%emt 00:00:14]} Kg2 {[%clk 00:02:38]} {[%emt 00:00:02]} 51. h6 {[%clk
00:00:13]} {[%emt 00:00:27]} Rh7 {[%clk 00:02:08]} {[%emt 00:00:33]} 52. Kxe3
{[%clk 00:00:05]} {[%emt 00:00:11]} Rxh6 {[%clk 00:01:58]} {[%emt 00:00:12]}
0-1

[Event "15. ročník Dobrovický rapid Tereos TTD a.s."]
[Site "Dobrovice, Czech Republic"]
[Date "2020.02.29"]
[Round "2.11"]
[White "Toman Jan"]
[Black "Jirasek Jiri"]
[Result "1/2-1/2"]
[TimeControl "15m + 3s / tah"]
[WhiteElo "2088"]
[BlackElo "1917"]

1. Nf3 {[%clk 00:15:03]} {[%emt 00:00:02]} d5 {[%clk 00:15:04]} {[%emt
00:00:02]} 2. g3 {[%clk 00:15:04]} {[%emt 00:00:02]} c5 {[%clk 00:15:05]}
{[%emt 00:00:02]} 3. Bg2 {[%clk 00:15:06]} {[%emt 00:00:01]} Nc6 {[%clk
00:15:07]} 4. O-O {[%clk 00:15:08]} {[%emt 00:00:02]} Nf6 {[%clk 00:15:08]}
{[%emt 00:00:01]} 5. d3 {[%clk 00:15:05]} {[%emt 00:00:06]} e6 {[%clk
00:14:47]} {[%emt 00:00:24]} 6. Nbd2 {[%clk 00:14:41]} {[%emt 00:00:28]} Be7
{[%clk 00:14:36]} {[%emt 00:00:14]} 7. e4 {[%clk 00:14:42]} {[%emt 00:00:02]}
O-O {[%clk 00:14:20]} {[%emt 00:00:18]} 8. e5 {[%clk 00:14:34]} {[%emt
00:00:11]} Nd7 {[%clk 00:14:18]} {[%emt 00:00:05]} 9. Qe2 {[%clk 00:14:33]}
{[%emt 00:00:03]} b6 {[%clk 00:12:45]} {[%emt 00:01:38]} 10. Re1 {[%clk
00:14:33]} {[%emt 00:00:03]} Bb7 {[%clk 00:12:37]} {[%emt 00:00:10]} 11. Nf1
{[%clk 00:14:10]} {[%emt 00:00:26]} Rc8 {[%clk 00:12:27]} {[%emt 00:00:12]} 12.
h4 {[%clk 00:14:06]} {[%emt 00:00:08]} Nd4 {[%clk 00:11:27]} {[%emt 00:01:03]}
13. Nxd4 {[%clk 00:13:49]} {[%emt 00:00:20]} cxd4 {[%clk 00:11:29]} {[%emt
00:00:01]} 14. Qg4 {[%clk 00:13:28]} {[%emt 00:00:23]} Rxc2 {[%clk 00:10:20]}
{[%emt 00:01:12]} 15. Bh6 {[%clk 00:13:22]} {[%emt 00:00:09]} g6 {[%clk
00:10:22]} {[%emt 00:00:02]} 16. Bxf8 {[%clk 00:13:15]} {[%emt 00:00:11]} Bxf8
{[%clk 00:09:30]} {[%emt 00:00:54]} 17. Qxd4 {[%clk 00:13:16]} {[%emt
00:00:02]} Bc5 {[%clk 00:08:39]} {[%emt 00:00:54]} 18. Qa4 {[%clk 00:13:05]}
{[%emt 00:00:14]} Bxf2+ {[%clk 00:08:38]} {[%emt 00:00:04]} 19. Kh1 {[%clk
00:13:05]} {[%emt 00:00:01]} Bxe1 {[%clk 00:08:36]} {[%emt 00:00:08]} 20. Qxc2
{[%clk 00:13:04]} {[%emt 00:00:04]} Bb4 {[%clk 00:08:18]} {[%emt 00:00:18]} 21.
d4 {[%clk 00:13:01]} {[%emt 00:00:08]} f6 {[%clk 00:07:25]} {[%emt 00:00:56]}
22. a3 {[%clk 00:11:32]} {[%emt 00:01:32]} Be7 {[%clk 00:07:20]} {[%emt
00:00:07]} 23. Re1 {[%clk 00:11:23]} {[%emt 00:00:12]} fxe5 {[%clk 00:07:15]}
{[%emt 00:00:08]} 24. dxe5 {[%clk 00:11:25]} {[%emt 00:00:02]} Bxh4 {[%clk
00:06:33]} {[%emt 00:00:46]} 25. Qe2 {[%clk 00:07:03]} {[%emt 00:04:23]} Bxg3
{[%clk 00:06:11]} {[%emt 00:00:27]} 26. Nxg3 {[%clk 00:06:16]} {[%emt
00:00:50]} Qh4+ {[%clk 00:06:13]} 27. Kg1 {[%clk 00:06:15]} {[%emt 00:00:04]}
Qxg3 {[%clk 00:06:15]} {[%emt 00:00:01]} 28. Qe3 {[%clk 00:05:51]} {[%emt
00:00:25]} Qxe3+ {[%emt 00:00:10]} 29. Rxe3 d4 {[%clk 00:05:12]} {[%emt
00:01:01]} 30. Rd3 {[%clk 00:05:22]} {[%emt 00:00:32]} Bxg2 {[%clk 00:05:00]}
{[%emt 00:00:17]} 31. Kxg2 {[%clk 00:05:24]} {[%emt 00:00:01]} Nxe5 {[%clk
00:05:00]} {[%emt 00:00:03]} 32. Rxd4 {[%clk 00:05:25]} {[%emt 00:00:02]} Kf7
{[%clk 00:05:01]} 33. Re4 {[%clk 00:04:38]} {[%emt 00:00:49]} Kf6 {[%clk
00:04:58]} {[%emt 00:00:06]} 34. Ra4 {[%clk 00:04:31]} {[%emt 00:00:09]}
1/2-1/2

[Event "15. ročník Dobrovický rapid Tereos TTD a.s."]
[Site "Dobrovice, Czech Republic"]
[Date "2020.02.29"]
[Round "2.12"]
[White "Mejzr Jan"]
[Black "Szeko Ludovit"]
[Result "0-1"]
[TimeControl "15m + 3s / tah"]
[WhiteElo "1843"]
[BlackElo "2051"]

1. e4 {[%clk 00:15:03]} {[%emt 00:00:03]} c5 {[%clk 00:15:04]} {[%emt
00:00:02]} 2. c3 {[%clk 00:14:55]} {[%emt 00:00:11]} d5 {[%clk 00:15:03]}
{[%emt 00:00:03]} 3. exd5 {[%clk 00:14:56]} {[%emt 00:00:03]} Qxd5 {[%clk
00:15:04]} {[%emt 00:00:02]} 4. d4 {[%clk 00:14:50]} {[%emt 00:00:09]} cxd4
{[%clk 00:14:59]} {[%emt 00:00:08]} 5. cxd4 {[%clk 00:14:38]} {[%emt 00:00:15]}
Nc6 {[%clk 00:14:58]} {[%emt 00:00:03]} 6. Nf3 {[%clk 00:13:53]} {[%emt
00:00:49]} Bg4 {[%clk 00:14:21]} {[%emt 00:00:40]} 7. Be2 {[%clk 00:13:29]}
{[%emt 00:00:28]} e6 {[%clk 00:14:22]} {[%emt 00:00:01]} 8. O-O {[%clk
00:12:19]} {[%emt 00:01:13]} Nf6 {[%clk 00:14:15]} {[%emt 00:00:09]} 9. Nc3
{[%clk 00:12:04]} {[%emt 00:00:19]} Qd8 {[%clk 00:13:55]} {[%emt 00:00:23]} 10.
h3 {[%clk 00:11:15]} {[%emt 00:00:53]} Bh5 {[%clk 00:13:55]} {[%emt 00:00:02]}
11. Be3 {[%clk 00:07:48]} {[%emt 00:03:29]} Be7 {[%clk 00:13:23]} {[%emt
00:00:35]} 12. Ne5 {[%clk 00:07:29]} {[%emt 00:00:24]} Bxe2 {[%clk 00:13:09]}
{[%emt 00:00:15]} 13. Nxe2 {[%clk 00:07:16]} {[%emt 00:00:17]} Nxe5 {[%clk
00:12:19]} {[%emt 00:00:53]} 14. dxe5 {[%clk 00:07:16]} {[%emt 00:00:04]} Nd5
{[%clk 00:12:19]} {[%emt 00:00:02]} 15. Qa4+ {[%clk 00:07:05]} {[%emt
00:00:14]} Qd7 {[%clk 00:11:55]} {[%emt 00:00:27]} 16. Qxd7+ {[%clk 00:07:06]}
{[%emt 00:00:02]} Kxd7 {[%clk 00:11:57]} {[%emt 00:00:01]} 17. Rad1 {[%clk
00:07:06]} {[%emt 00:00:03]} Rhd8 {[%clk 00:11:15]} {[%emt 00:00:44]} 18. Nc3
{[%clk 00:06:54]} {[%emt 00:00:15]} Kc6 {[%clk 00:11:13]} {[%emt 00:00:05]} 19.
Nxd5 {[%clk 00:06:36]} {[%emt 00:00:21]} Rxd5 {[%clk 00:11:13]} {[%emt
00:00:02]} 20. Rc1+ {[%clk 00:06:29]} {[%emt 00:00:10]} Kd7 {[%clk 00:11:05]}
{[%emt 00:00:10]} 21. Rfd1 {[%clk 00:05:31]} {[%emt 00:01:01]} a6 {[%clk
00:10:48]} {[%emt 00:00:20]} 22. Kf1 {[%clk 00:04:16]} {[%emt 00:01:18]} Rc8
{[%clk 00:10:29]} {[%emt 00:00:22]} 23. Rxd5+ {[%clk 00:04:05]} {[%emt
00:00:15]} exd5 {[%clk 00:10:29]} {[%emt 00:00:02]} 24. Rxc8 {[%clk 00:03:35]}
{[%emt 00:00:33]} Kxc8 {[%clk 00:10:31]} {[%emt 00:00:01]} 25. Ke2 {[%clk
00:03:28]} {[%emt 00:00:10]} Kd7 {[%clk 00:10:33]} 26. Kd3 {[%clk 00:03:17]}
{[%emt 00:00:14]} g6 {[%clk 00:10:06]} {[%emt 00:00:30]} 27. f4 {[%clk
00:02:33]} {[%emt 00:00:47]} h5 {[%clk 00:09:57]} {[%emt 00:00:11]} 28. g4
{[%clk 00:02:31]} {[%emt 00:00:05]} Ke6 {[%clk 00:09:55]} {[%emt 00:00:05]} 29.
Bb6 {[%clk 00:02:19]} {[%emt 00:00:15]} hxg4 {[%clk 00:09:34]} {[%emt
00:00:25]} 30. hxg4 {[%clk 00:02:21]} {[%emt 00:00:01]} g5 {[%clk 00:09:31]}
{[%emt 00:00:06]} 31. Be3 {[%clk 00:01:35]} {[%emt 00:00:50]} gxf4 {[%clk
00:09:22]} {[%emt 00:00:12]} 32. Bxf4 {[%clk 00:01:36]} {[%emt 00:00:02]} Bc5
{[%clk 00:09:14]} {[%emt 00:00:09]} 33. a4 {[%clk 00:01:24]} {[%emt 00:00:16]}
Bb4 {[%clk 00:09:11]} {[%emt 00:00:07]} 34. b3 {[%clk 00:01:25]} {[%emt
00:00:03]} Bc5 {[%clk 00:08:57]} {[%emt 00:00:16]} 35. Bg3 {[%clk 00:01:26]}
{[%emt 00:00:03]} Bg1 {[%clk 00:08:29]} {[%emt 00:00:31]} 36. Bf4 {[%clk
00:01:24]} {[%emt 00:00:05]} Bf2 {[%clk 00:08:29]} {[%emt 00:00:02]} 37. Bh2
{[%clk 00:01:25]} {[%emt 00:00:02]} Kd7 {[%clk 00:08:04]} {[%emt 00:00:28]} 38.
Bf4 {[%clk 00:01:23]} {[%emt 00:00:05]} Kc6 {[%clk 00:08:02]} {[%emt 00:00:06]}
39. Be3 {[%clk 00:00:53]} {[%emt 00:00:33]} Bh4 {[%clk 00:07:40]} {[%emt
00:00:24]} 40. Kd4 {[%clk 00:00:35]} {[%emt 00:00:21]} Bd8 {[%clk 00:07:37]}
{[%emt 00:00:05]} 41. Kd3 {[%clk 00:00:37]} {[%emt 00:00:02]} Bc7 {[%clk
00:07:29]} {[%emt 00:00:11]} 42. Bd4 {[%clk 00:00:39]} {[%emt 00:00:02]} Kd7
{[%clk 00:07:28]} {[%emt 00:00:04]} 43. Ke3 {[%clk 00:00:40]} {[%emt 00:00:02]}
Ke6 {[%clk 00:07:29]} {[%emt 00:00:01]} 44. g5 {[%clk 00:00:16]} {[%emt
00:00:28]} Bxe5 {[%clk 00:07:29]} {[%emt 00:00:03]} 45. Bc5 {[%clk 00:00:06]}
{[%emt 00:00:13]} Kf5 {[%clk 00:07:24]} {[%emt 00:00:07]} 46. Be7 {[%clk
00:00:04]} {[%emt 00:00:05]} b5 {[%clk 00:07:04]} {[%emt 00:00:23]} 47. axb5
{[%clk 00:00:06]} {[%emt 00:00:02]} axb5 {[%clk 00:07:06]} {[%emt 00:00:01]} 48.
Kd3 {[%clk 00:00:08]} Bb2 {[%clk 00:06:48]} {[%emt 00:00:20]} 49. Bd8 {[%clk
00:00:10]} {[%emt 00:00:02]} Ke6 {[%clk 00:06:07]} {[%emt 00:00:44]} 50. Bb6
{[%clk 00:00:07]} {[%emt 00:00:07]} Kd6 {[%clk 00:05:58]} {[%emt 00:00:11]} 51.
Bd8 {[%clk 00:00:08]} {[%emt 00:00:03]} Bg7 {[%clk 00:05:46]} {[%emt 00:00:14]}
52. Bb6 {[%clk 00:00:05]} {[%emt 00:00:06]} Kc6 {[%clk 00:05:44]} {[%emt
00:00:05]} 53. Be3 {[%clk 00:00:05]} {[%emt 00:00:03]} Bf8 {[%clk 00:05:23]}
{[%emt 00:00:25]} 54. Ba7 {[%clk 00:00:04]} {[%emt 00:00:04]} Bc5 {[%clk
00:05:19]} {[%emt 00:00:07]} 55. Bb8 {[%clk 00:00:06]} {[%emt 00:00:01]} Bd6
{[%clk 00:05:15]} {[%emt 00:00:06]} 56. Ba7 {[%clk 00:00:08]} {[%emt 00:00:02]}
Bf4 {[%clk 00:05:16]} {[%emt 00:00:02]} 57. Be3 {[%clk 00:00:05]} {[%emt
00:00:06]} Bxe3 {[%clk 00:05:14]} {[%emt 00:00:06]} 58. Kxe3 {[%clk 00:00:06]}
{[%emt 00:00:01]} Kd6 {[%clk 00:04:58]} {[%emt 00:00:19]} 59. Kd4 {[%clk
00:00:07]} {[%emt 00:00:03]} b4 {[%clk 00:04:54]} {[%emt 00:00:05]} 60. Kd3
{[%clk 00:00:07]} {[%emt 00:00:03]} Ke5 {[%clk 00:04:53]} {[%emt 00:00:05]} 61.
Ke3 {[%clk 00:00:08]} {[%emt 00:00:03]} d4+ {[%clk 00:04:50]} {[%emt 00:00:06]}
62. Kd3 {[%clk 00:00:00]} {[%emt 00:00:07]} 0-1

[Event "15. ročník Dobrovický rapid Tereos TTD a.s."]
[Site "Dobrovice, Czech Republic"]
[Date "2020.02.29"]
[Round "2.13"]
[White "Jerman Richard"]
[Black "Koper Stefan"]
[Result "1/2-1/2"]
[TimeControl "15m + 3s / tah"]
[WhiteElo "2046"]
[BlackElo "1915"]

1. e4 {[%clk 00:15:05]} {[%emt 00:00:01]} g6 {[%clk 00:15:05]} {[%emt
00:00:02]} 2. d4 {[%clk 00:15:06]} {[%emt 00:00:01]} Bg7 {[%clk 00:15:07]}
{[%emt 00:00:01]} 3. Nc3 {[%clk 00:15:08]} {[%emt 00:00:02]} c6 {[%clk
00:15:08]} {[%emt 00:00:01]} 4. Nf3 {[%clk 00:14:50]} {[%emt 00:00:21]} d5
{[%clk 00:15:10]} 5. exd5 {[%clk 00:14:46]} {[%emt 00:00:08]} cxd5 {[%clk
00:15:12]} {[%emt 00:00:01]} 6. Bb5+ {[%clk 00:14:35]} {[%emt 00:00:13]} Nc6
{[%clk 00:15:09]} {[%emt 00:00:06]} 7. O-O {[%clk 00:14:18]} {[%emt 00:00:20]}
a6 {[%clk 00:15:05]} {[%emt 00:00:08]} 8. Ba4 {[%clk 00:14:07]} {[%emt
00:00:13]} Bg4 {[%clk 00:15:01]} {[%emt 00:00:07]} 9. h3 {[%clk 00:12:59]}
{[%emt 00:01:12]} Bxf3 {[%clk 00:14:58]} {[%emt 00:00:05]} 10. Qxf3 {[%clk
00:13:00]} {[%emt 00:00:02]} e6 {[%clk 00:14:57]} {[%emt 00:00:04]} 11. Bxc6+
{[%clk 00:12:49]} {[%emt 00:00:14]} bxc6 {[%clk 00:14:58]} {[%emt 00:00:02]} 12.
Be3 {[%clk 00:12:50]} {[%emt 00:00:02]} Ne7 {[%clk 00:14:46]} {[%emt 00:00:15]}
13. Na4 {[%clk 00:12:45]} {[%emt 00:00:08]} Nf5 {[%clk 00:14:45]} {[%emt
00:00:05]} 14. c3 {[%clk 00:12:41]} {[%emt 00:00:07]} Nxe3 {[%clk 00:14:45]}
{[%emt 00:00:03]} 15. fxe3 {[%clk 00:12:43]} {[%emt 00:00:01]} O-O {[%clk
00:14:45]} {[%emt 00:00:02]} 16. e4 {[%clk 00:12:26]} {[%emt 00:00:20]} a5
{[%clk 00:13:34]} {[%emt 00:01:14]} 17. Nc5 {[%clk 00:12:14]} {[%emt 00:00:14]}
a4 {[%clk 00:13:32]} {[%emt 00:00:05]} 18. b4 {[%clk 00:12:03]} {[%emt
00:00:14]} axb3 {[%clk 00:12:50]} {[%emt 00:00:46]} 19. axb3 {[%clk 00:12:04]}
{[%emt 00:00:02]} Qe7 {[%clk 00:12:50]} {[%emt 00:00:03]} 20. exd5 {[%clk
00:11:07]} {[%emt 00:01:00]} cxd5 {[%clk 00:12:43]} {[%emt 00:00:10]} 21. b4
{[%clk 00:10:51]} {[%emt 00:00:19]} Rad8 {[%clk 00:11:48]} {[%emt 00:00:58]} 22.
b5 {[%clk 00:09:27]} {[%emt 00:01:27]} Rb8 {[%clk 00:11:29]} {[%emt 00:00:22]}
23. Rfb1 {[%clk 00:09:24]} {[%emt 00:00:06]} e5 {[%clk 00:11:27]} {[%emt
00:00:05]} 24. Qe3 {[%clk 00:08:34]} {[%emt 00:00:53]} Rfe8 {[%clk 00:09:53]}
{[%emt 00:01:37]} 25. Ra4 {[%clk 00:07:47]} {[%emt 00:00:50]} Qd6 {[%clk
00:08:47]} {[%emt 00:01:09]} 26. Qd2 {[%clk 00:06:37]} {[%emt 00:01:12]} exd4
{[%clk 00:08:42]} {[%emt 00:00:09]} 27. cxd4 {[%clk 00:06:38]} {[%emt
00:00:01]} Rb6 {[%clk 00:07:50]} {[%emt 00:00:55]} 28. Ra6 {[%clk 00:06:14]}
{[%emt 00:00:28]} Rc8 {[%clk 00:07:00]} {[%emt 00:00:52]} 29. Rxb6 {[%clk
00:03:58]} {[%emt 00:02:19]} Qxb6 {[%clk 00:07:00]} {[%emt 00:00:02]} 30. Kh2
{[%clk 00:01:37]} {[%emt 00:02:24]} Bxd4 {[%clk 00:05:54]} {[%emt 00:01:11]} 31.
Qxd4 {[%clk 00:01:37]} {[%emt 00:00:02]} Rxc5 {[%clk 00:05:50]} {[%emt
00:00:07]} 32. Qe5 {[%clk 00:01:20]} {[%emt 00:00:20]} Qc7 {[%clk 00:04:32]}
{[%emt 00:01:21]} 33. Qxc7 {[%clk 00:01:21]} {[%emt 00:00:02]} Rxc7 34. b6
{[%emt 00:00:02]} Rb7 {[%clk 00:04:33]} 35. Kg3 {[%clk 00:01:24]} {[%emt
00:00:01]} Kf8 {[%clk 00:04:34]} 36. Kf4 {[%clk 00:01:26]} f6 {[%clk 00:04:36]}
37. Rb5 {[%clk 00:00:50]} {[%emt 00:00:39]} Ke7 {[%clk 00:04:34]} {[%emt
00:00:05]} 38. Rxd5 {[%clk 00:00:41]} {[%emt 00:00:13]} Rxb6 {[%clk 00:04:37]}
39. Ra5 {[%clk 00:00:40]} {[%emt 00:00:04]} h5 {[%clk 00:04:30]} {[%emt
00:00:10]} 40. Ra4 {[%clk 00:00:39]} {[%emt 00:00:04]} Ke6 {[%clk 00:03:54]}
{[%emt 00:00:40]} 41. Re4+ {[%clk 00:00:40]} {[%emt 00:00:01]} Kf7 {[%clk
00:03:56]} 42. Ra4 {[%clk 00:00:42]} g5+ {[%clk 00:03:40]} {[%emt 00:00:21]} 43.
Kf3 {[%clk 00:00:36]} {[%emt 00:00:10]} h4 {[%clk 00:03:32]} {[%emt 00:00:11]}
44. Ra3 {[%clk 00:00:28]} {[%emt 00:00:11]} Kg6 {[%clk 00:03:33]} {[%emt
00:00:01]} 45. Rc3 {[%clk 00:00:29]} {[%emt 00:00:01]} Kh5 {[%clk 00:03:26]}
{[%emt 00:00:11]} 46. Ra3 {[%clk 00:00:29]} {[%emt 00:00:04]} Rb5 {[%clk
00:03:02]} {[%emt 00:00:26]} 47. Rc3 {[%clk 00:00:31]} {[%emt 00:00:01]} f5
{[%clk 00:03:02]} {[%emt 00:00:04]} 48. Rc8 {[%clk 00:00:28]} {[%emt 00:00:05]}
Rb3+ {[%clk 00:02:46]} {[%emt 00:00:19]} 49. Kf2 {[%clk 00:00:31]} {[%emt
00:00:01]} g4 {[%clk 00:02:48]} 50. hxg4+ {[%clk 00:00:33]} {[%emt 00:00:01]}
Kxg4 {[%clk 00:02:42]} {[%emt 00:00:10]} 51. Rc4+ {[%clk 00:00:31]} {[%emt
00:00:04]} f4 {[%clk 00:02:44]} {[%emt 00:00:01]} 52. Rc8 {[%clk 00:00:32]}
{[%emt 00:00:03]} Rb2+ {[%clk 00:02:46]} {[%emt 00:00:01]} 53. Kg1 {[%clk
00:00:32]} {[%emt 00:00:02]} Rb1+ {[%clk 00:02:34]} {[%emt 00:00:15]} 54. Kh2
{[%clk 00:00:34]} {[%emt 00:00:02]} Rb2 {[%clk 00:02:36]} 55. Kg1 {[%clk
00:00:36]} Rb3 {[%clk 00:02:00]} {[%emt 00:00:23]} 1/2-1/2